fUSD/lending_fUSD_20260115
["ID","MTS","AMOUNT","RATE_DAILY","PERIOD"]
[402076214,1768510239706,-25874.44908095,0.00017453,2]
[402076215,1768510239717,-11321.50816592,0.00017453,2]
[402076216,1768510239730,-1692.61,0.00017478,2]
[402076217,1768510239741,-446.97,0.00017483,2]
[402076218,1768510239751,-500.0,0.00017512,2]
[402076220,1768510239763,-500.0,0.0001752,2]
[402076221,1768510239774,-500.0,0.00017521,2]
[402076222,1768510239784,-500.0,0.00017521,2]
[402076223,1768510239795,-1081.21291335,0.00017521,2]
[402076224,1768510239806,-1002.71264906,0.00017521,2]
[402076225,1768510239817,-1000.0,0.00017521,2]
[402076226,1768510239828,-1006.00992652,0.00017521,2]
[402076227,1768510239838,-1000.0,0.00017521,2]
[402076228,1768510239849,-1000.0,0.00017521,2]
[402076229,1768510239860,-1000.0,0.00017521,2]
[402076230,1768510239870,-1000.0,0.00017521,2]
[402076231,1768510239881,-924.12086977,0.00017521,2]
[402076232,1768510239891,-1000.0,0.00017521,2]
[402076233,1768510239901,-25874.44908095,0.00017602,2]
[402076234,1768510239912,-11321.50816592,0.00017602,2]
[402076235,1768510239922,-173.12624248,0.00017651,2]
[402076237,1768510239933,-716.75732676,0.00017651,2]
[402076238,1768510239942,-24303.0,0.00017671,2]
[402076239,1768510239953,-736053.321078,0.00017708,2]
[402076240,1768510239963,-25874.44908095,0.00017751,2]
[402076241,1768510239973,-11321.50816592,0.00017751,2]
[402076242,1768510239983,-1692.61,0.00017752,2]
[402076243,1768510239993,-446.97,0.00017757,2]
[402076244,1768510240004,-170.76,0.00017758,2]
[402076245,1768510240014,-394.0,0.00017771,2]
[402076246,1768510240024,-1000.0,0.00017812,2]
[402076247,1768510240035,-3157.83657888,0.000179,2]
[402076248,1768510240044,-25874.44908095,0.000179,2]
[402076249,1768510240054,-11321.50816592,0.000179,2]
[402076250,1768510240065,-1366.84774724,0.000179,2]
[402076251,1768510240075,-180.08839978,0.000179,2]
[402076252,1768510240086,-500.0,0.00017911,2]
[402076253,1768510240096,-152143.30509813,0.00017912,2]
[402076254,1768510240107,-269.0,0.00017915,2]
[402076255,1768510240118,-3389.0,0.00017967,2]
[402076256,1768510240129,-500.0,0.00017972,2]
[402076257,1768510240140,-500.0,0.00017973,2]
[402076259,1768510240150,-500.0,0.00017973,2]
[402076260,1768510240161,-500.0,0.00017973,2]
[402076261,1768510240171,-500.0,0.00017973,2]
[402076262,1768510240182,-500.0,0.00017973,2]
[402076263,1768510240192,-500.0,0.00017973,2]
[402076264,1768510240202,-500.0,0.00017973,2]
[402076265,1768510240214,-500.0,0.00017973,2]
[402076266,1768510240224,-321.47728481,0.00017973,2]
[402076267,1768510240234,-500.0,0.00017973,2]
[402076268,1768510240244,-500.0,0.00017973,2]
[402076269,1768510240253,-500.0,0.00017973,2]
[402076270,1768510240263,-500.0,0.00017973,2]
[402076271,1768510240273,-500.0,0.00017973,2]
[402076272,1768510240283,-150.0,0.00017973,2]
[402076273,1768510240292,-500.0,0.00017973,2]
[402076274,1768510240302,-500.0,0.00017973,2]
[402076275,1768510240312,-500.0,0.00017973,2]
[402076276,1768510240321,-500.0,0.00017973,2]
[402076277,1768510240331,-500.0,0.00017973,2]
[402076278,1768510240342,-500.0,0.00017973,2]
[402076279,1768510240352,-500.0,0.00017973,2]
[402076280,1768510240362,-500.0,0.00017973,2]
[402076281,1768510240372,-500.0,0.00017973,2]
[402076282,1768510240384,-500.0,0.00017973,2]
[402076283,1768510240394,-500.0,0.00017973,2]
[402076284,1768510240404,-500.0,0.00017973,2]
[402076285,1768510240415,-500.0,0.00017973,2]
[402076286,1768510240426,-500.0,0.00017973,2]
[402076287,1768510240436,-500.0,0.00017973,2]
[402076288,1768510240447,-500.0,0.00017973,2]
[402076289,1768510240457,-500.0,0.00017973,2]
[402076290,1768510240467,-500.0,0.00017973,2]
[402076291,1768510240477,-500.73390845,0.00017973,2]
[402076292,1768510240488,-500.0,0.00017973,2]
[402076293,1768510240499,-459.13744812,0.0001799,2]
[402076294,1768510240509,-459.13744812,0.0001799,2]
[402076295,1768510240520,-500.0,0.00017999,2]
[402076296,1768510240530,-500.0,0.00017999,2]
[402076297,1768510240541,-300.0,0.00017999,2]
[402076298,1768510240551,-463.03847745,0.00017999,2]
[402076299,1768510240560,-300.0,0.00017999,2]
[402076300,1768510240570,-1295661.97708012,0.00018,2]
[402076301,1768510240637,-33623.78401528,0.00018,2]
[402076302,1768510240698,440.66,0.000165,2]
[402076308,1768510241416,-618.526377,0.00018,2]
[402076336,1768510243687,-1731.41031661,0.00018,2]
[402076337,1768510243713,-4081.75028324,0.00018,2]
[402076338,1768510243726,-2384.78114555,0.00018,2]
[402076339,1768510243775,-3101.14109984,0.00018,2]
[402076340,1768510245174,-3412.62979512,0.00018,2]
[402076341,1768510245186,-279.38637231,0.00018,2]
[402076342,1768510245202,-98225.91224451,0.00018,2]
[402076343,1768510245212,-16988.72021078,0.00018,2]
[402076344,1768510245223,-3614.03968522,0.00018,2]
[402076345,1768510245233,-4132.576341,0.00018,2]
[402076346,1768510245243,-864.40629878,0.00018,2]
[402076347,1768510245254,-541.54300055,0.00018,2]
[402076348,1768510245265,-464.76347741,0.00018,2]
[402076349,1768510245276,-354.14287224,0.00018,2]
[402076350,1768510245290,-423.95581672,0.00018,2]
[402076351,1768510245301,-5371.37422804,0.00018,2]
[402076352,1768510245406,-1325.45,0.00018,2]
[402076360,1768510246561,-921.8122,0.00016557,2]
[402076361,1768510246574,-78.1678,0.00018,2]
[402076362,1768510247322,-8107.23309599,0.00018,2]
[402076363,1768510247338,-2429.44682805,0.00018,2]
[402076364,1768510247353,-18840.0,0.00018,2]
[402076365,1768510247368,-1494.76740764,0.00018,2]
[402076366,1768510247384,-1606.31709725,0.00018,2]
[402076367,1768510247406,-148593.75237235,0.00018,2]
[402076368,1768510247422,-22437.6933177,0.00018,2]
[402076369,1768510247449,-3177.52045004,0.00018,2]
[402076370,1768510247465,-1947.94511689,0.00018,2]
[402076371,1768510247480,-4067.9747481,0.00018,2]
[402076372,1768510247511,-69998.71434725,0.00018,2]
[402076375,1768510370764,-1057.35222944,0.00016556,2]
[402076376,1768510373803,-269.40144431,0.00016556,2]
[402076377,1768510376109,-299.13673875,0.00016556,2]
[402076378,1768510379477,-188.2704024,0.00016556,2]
[402076379,1768510381209,300.0,0.00016555,2]
[402076380,1768510382605,-213.76484755,0.00016556,2]
[402076381,1768510387499,1673.2882088,0.00016463,2]
[402076382,1768510387642,-250.23867329,0.00016556,2]
[402076383,1768510398132,1200.0,0.00016555,2]
[402076384,1768510398558,-187.12878608,0.00016556,2]
[402076385,1768510400987,-167.53649286,0.00016556,2]
[402076386,1768510404349,-304.8185651,0.00016556,2]
[402076387,1768510406650,-166.37701664,0.00016556,2]
[402076388,1768510408221,-155.42428632,0.00016556,2]
[402076389,1768510408898,2900.9314631,0.00016457,2]
[402076390,1768510411889,-168.18601244,0.00016556,2]
[402076391,1768510415658,-269.62113943,0.00016556,2]
[402076392,1768510417622,-236.43861474,0.00016556,2]
[402076393,1768510420078,-300.08343105,0.00016556,2]
[402076394,1768510421632,-255.88840929,0.00016556,2]
[402076395,1768510423117,-300.82847297,0.00016556,2]
[402076396,1768510425069,-328.99408901,0.00016556,2]
[402076397,1768510429005,-205.61761512,0.00016556,2]
[402076398,1768510430479,-222.00260049,0.00016556,2]
[402076399,1768510432031,-314.78249771,0.00016556,2]
[402076400,1768510433820,-163.2149018,0.00016556,2]
[402076401,1768510436851,-154.57460335,0.00016556,2]
[402076402,1768510439149,-430.87421134,0.00016556,2]
[402076403,1768510441329,515.94910208,0.00016457,2]
[402076404,1768510441795,-162.14755588,0.00016556,2]
[402076405,1768510442351,550.0,0.00016555,2]
[402076406,1768510444075,-221.1910972,0.00016556,2]
[402076407,1768510445667,-216.0729742,0.00016556,2]
[402076408,1768510449591,-214.65359386,0.00016556,2]
[402076409,1768510452138,-265.0,0.00016556,2]
[402076410,1768510454933,-468.42587056,0.00016556,2]
[402076411,1768510456550,-580.43958364,0.00016556,2]
[402076412,1768510458148,-416.16808016,0.00016556,2]
[402076413,1768510472943,365.125069,0.00016473,2]
[402076414,1768510476023,-152.68088658,0.00016556,2]
[402076415,1768510478906,-203.20335228,0.00016556,2]
[402076416,1768510488639,500.0,0.00016456,2]
[402076417,1768510490807,-282.97186034,0.00016556,2]
[402076418,1768510492980,-500.0,0.00016556,2]
[402076419,1768510495699,-184.72499494,0.00016556,2]
[402076420,1768510496230,839.75104489,0.00016457,2]
[402076421,1768510498007,-214.7707599,0.00016556,2]
[402076422,1768510501155,300.0,0.00016555,2]
[402076423,1768510501237,300.0,0.00016555,2]
[402076424,1768510501451,554.96511213,0.00016555,2]
[402076425,1768510501766,-291.60566457,0.00016555,2]
[402076426,1768510504355,-353.4292233,0.00016555,2]
[402076427,1768510504387,-151.44698312,0.00016556,2]
[402076428,1768510506546,-282.50418735,0.00016556,2]
[402076430,1768510509009,-315.00656508,0.00016556,2]
[402076431,1768510510798,160.0,0.00016555,2]
[402076432,1768510511270,-378.62717473,0.00016556,2]
[402076433,1768510512818,-342.51254721,0.00016556,2]
[402076434,1768510517030,-272.48385359,0.00016556,2]
[402076435,1768510519733,-221.11452198,0.00016556,2]
[402076436,1768510522454,-203.09776476,0.00016556,2]
[402076437,1768510525009,-296.91439708,0.00016556,2]
[402076438,1768510525647,422.32459241,0.00016457,2]
[402076439,1768510528903,-245.0,0.00016556,2]
[402076440,1768510530371,-278.87331618,0.00016556,2]
[402076441,1768510532826,-295.23098457,0.00016556,2]
[402076442,1768510536241,-246.39644159,0.00016556,2]
[402076443,1768510538811,-228.49100707,0.00016556,2]
[402076444,1768510540975,-449.54523467,0.00016556,2]
[402076445,1768510544365,-245.23471979,0.00016556,2]
[402076446,1768510545866,-176.0904459,0.00016556,2]
[402076447,1768510548971,-222.55405972,0.00016556,2]
[402076448,1768510550598,-285.12477799,0.00016556,2]
[402076449,1768510553280,-296.98218504,0.00016556,2]
[402076450,1768510557585,-215.53703469,0.00016556,2]
[402076451,1768510561870,200.0,0.00016552,2]
[402076452,1768510569510,500.0,0.00016555,2]
[402076453,1768510569676,500.0,0.00016555,2]
[402076454,1768510570052,500.0,0.00016555,2]
[402076455,1768510570315,500.0,0.00016555,2]
[402076456,1768510570612,500.0,0.00016555,2]
[402076457,1768510570919,500.0,0.00016555,2]
[402076458,1768510571249,500.0,0.00016555,2]
[402076459,1768510571583,500.0,0.00016555,2]
[402076460,1768510571795,5217.68540759,0.00016457,2]
[402076461,1768510571823,10000.01,0.00016457,2]
[402076462,1768510576185,-4916.6091801,0.00016457,2]
[402076463,1768510576363,-166.7916398,0.00016457,2]
[402076464,1768510576401,-500.0,0.00016555,2]
[402076465,1768510577220,500.0,0.00016555,2]
[402076466,1768510581805,406.97086307,0.00016457,2]
[402076467,1768510611275,-402.5125319,0.00016556,2]
[402076468,1768510613044,-229.28632675,0.00016556,2]
[402076469,1768510622498,300.0,0.00016555,2]
[402076470,1768510622700,550.0,0.00016555,2]
[402076471,1768510623829,300.0,0.00016555,2]
[402076472,1768510637527,500.0,0.00016555,2]
[402076473,1768510637582,500.0,0.00016555,2]
[402076474,1768510637618,500.0,0.00016555,2]
[402076475,1768510637670,500.0,0.00016555,2]
[402076476,1768510637719,500.0,0.00016555,2]
[402076477,1768510637755,500.0,0.00016555,2]
[402076478,1768510637797,500.0,0.00016555,2]
[402076479,1768510637906,500.0,0.00016555,2]
[402076480,1768510637985,500.0,0.00016555,2]
[402076481,1768510638033,500.0,0.00016555,2]
[402076482,1768510638080,500.0,0.00016555,2]
[402076483,1768510638137,500.0,0.00016555,2]
[402076484,1768510638175,500.0,0.00016555,2]
[402076485,1768510638218,109.45585733,0.00016555,2]
[402076486,1768510639089,-211.86783951,0.00016555,2]
[402076487,1768510641782,-178.67630316,0.00016555,2]
[402076488,1768510641812,-34.42434801,0.00016555,2]
[402076490,1768510644512,-460.28866596,0.00016555,2]
[402076491,1768510647113,-5.28698603,0.00016555,2]
[402076492,1768510647141,-189.42140639,0.00016555,2]
[402076493,1768510662144,999.0,0.00016324,3]
[402076494,1768510668887,257.310391,0.00016472,2]
[402076495,1768510700731,-329.80083508,0.00016554,2]
[402076496,1768510701222,194.30607423,0.0002963,120]
[402076497,1768510702243,-266.23496268,0.00016554,2]
[402076498,1768510705994,-170.23876717,0.00016554,2]
[402076499,1768510708954,-433.72543507,0.00016554,2]
[402076500,1768510708983,-84.24238649,0.00016555,2]
[402076501,1768510711946,-181.15006945,0.00016555,2]
[402076502,1768510714309,-45.18613767,0.00016555,2]
[402076503,1768510714336,-255.45763339,0.00016555,2]
[402076504,1768510718105,-195.20792808,0.00016555,2]
[402076505,1768510719680,-49.33443853,0.00016555,2]
[402076506,1768510719707,-103.41520823,0.00016555,2]
[402076507,1768510722561,-390.46187134,0.00016555,2]
[402076508,1768510724722,-6.12292043,0.00016555,2]
[402076509,1768510724747,-160.00965971,0.00016555,2]
[402076510,1768510725786,404.04533862,0.00016456,2]
[402076511,1768510727490,-339.99034029,0.00016555,2]
[402076512,1768510727519,-71.72210383,0.00016555,2]
[402076513,1768510729051,-181.29810512,0.00016555,2]
[402076514,1768510730746,-246.97979105,0.00016555,2]
[402076515,1768510730772,-17.02020895,0.00016555,2]
[402076516,1768510732726,-341.16755733,0.00016555,2]
[402076517,1768510736758,-141.81223372,0.00016555,2]
[402076518,1768510736785,-210.12661861,0.00016555,2]
[402076519,1768510739450,-289.87338139,0.00016555,2]
[402076520,1768510739475,-63.15762716,0.00016555,2]
[402076521,1768510741667,-226.62461992,0.00016554,2]
[402076522,1768510743416,-73.37538008,0.00016554,2]
[402076523,1768510743446,-203.2415936,0.00016555,2]
[402076524,1768510745537,-233.60077924,0.00016555,2]
[402076525,1768510745567,-327.76316542,0.00016555,2]
[402076526,1768510747858,-172.23683458,0.00016555,2]
[402076527,1768510747884,-15.99208579,0.00016555,2]
[402076528,1768510750009,-219.13058045,0.00016555,2]
[402076529,1768510753114,-264.87733376,0.00016555,2]
[402076530,1768510753143,-85.44815493,0.00016555,2]
[402076531,1768510754612,-208.5176781,0.00016555,2]
[402076532,1768510756169,-200.32500541,0.00016555,2]
[402076533,1768510758805,-5.70916156,0.00016555,2]
[402076534,1768510758830,-294.29083844,0.00016555,2]
[402076535,1768510761295,-205.70916156,0.00016555,2]
[402076536,1768510761322,-142.76739946,0.00016555,2]
[402076537,1768510764101,-357.23260054,0.00016555,2]
[402076538,1768510764129,-101.27145918,0.00016555,2]
[402076539,1768510775524,8339.65427038,0.00016456,2]
[402076540,1768510775551,10000.01,0.00016456,2]
[402076541,1768510775576,7424.89525575,0.00016456,2]
[402076542,1768510776821,-159.25570802,0.00016555,2]
[402076543,1768510782363,10000.01,0.00016233,2]
[402076544,1768510782387,8841.28,0.00016233,2]
[402076545,1768510783898,-239.4728328,0.00016555,2]
[402076546,1768510783927,-72.34663479,0.00016555,2]
[402076547,1768510797568,1158.73,0.000155,7]
[402076548,1768510797592,10000.01,0.000155,7]
[402076549,1768510797616,10000.01,0.000155,7]
[402076550,1768510797645,135138.6460279,0.000155,7]
[402076551,1768510797676,10702.6039721,0.000155,7]
[402076553,1768510980248,-4077.41566883,0.00015766,2]
[402076554,1768510983215,-140.17566883,0.00015766,2]
[402076555,1768510983243,-9719.65866234,0.00015766,2]
[402076556,1768511005285,-1200.0,0.00015737,2]
[402076557,1768511005331,-7600.01,0.00015738,2]
[402076558,1768511013873,-3594.73,0.00015738,2]
[402076559,1768511013940,-2810.55,0.00015762,2]
[402076560,1768511055786,-3048.599019,0.00015682,2]
[402076561,1768511055814,-475.051962,0.00015762,2]
[402076562,1768511055863,-2952.708038,0.00015762,2]
[402076563,1768511064810,-300.0,0.00015788,2]
[402076564,1768511064838,-443.85820219,0.00015815,2]
[402076565,1768511064868,-300.0,0.00015836,2]
[402076566,1768511064898,-300.0,0.00015836,2]
[402076567,1768511064926,-300.0,0.00015868,2]
[402076568,1768511064962,-250.0,0.00015868,2]
[402076569,1768511064997,-150.0,0.00015869,2]
[402076570,1768511065040,-1600.0,0.00016009,2]
[402076571,1768511065070,-151.0,0.00016337,2]
[402076572,1768511065101,-151.0,0.00016338,2]
[402076573,1768511065129,-151.0,0.00016338,2]
[402076574,1768511065158,-151.0,0.00016339,2]
[402076575,1768511065186,-151.0,0.00016339,2]
[402076576,1768511065215,-151.0,0.00016339,2]
[402076577,1768511065247,-151.0,0.00016341,2]
[402076578,1768511065275,-151.0,0.00016341,2]
[402076579,1768511065304,-145.29359562,0.00016341,2]
[402076580,1768511065706,-5.70640438,0.00016341,2]
[402076633,1768511161371,-151.0,0.00016363,2]
[402076634,1768511161399,-151.0,0.00016363,2]
[402076635,1768511161429,-151.0,0.00016363,2]
[402076636,1768511161459,-151.0,0.00016363,2]
[402076637,1768511161487,-150.99,0.00016364,2]
[402076638,1768511161518,-250.0,0.00016365,2]
[402076639,1768511161549,-151.0,0.00016366,2]
[402076640,1768511161579,-151.0,0.00016366,2]
[402076641,1768511161608,-300.0,0.00016453,2]
[402076642,1768511161639,-1200.0,0.00016453,2]
[402076643,1768511161668,-300.0,0.00016453,2]
[402076644,1768511161816,-2362.74,0.00016454,2]
[402076645,1768511162048,-1423.29,0.00016454,2]
[402076646,1768511162095,-3851.24,0.00016454,2]
[402076647,1768511162105,-1179.61,0.00016454,2]
[402076648,1768511162114,-479.79,0.00016456,2]
[402076649,1768511162124,-811.66851646,0.00016456,2]
[402076650,1768511162133,-847.86320749,0.00016456,2]
[402076651,1768511162142,-467.09827605,0.00016457,2]
[402076653,1768511164868,-10000.01,0.00016457,2]
[402076705,1768511283908,288.72,0.00026986,120]
[402076706,1768511308320,-1941.61918,0.0001623,2]
[402076707,1768511308354,-195.0,0.00016312,2]
[402076708,1768511308384,-546.81397018,0.00016353,2]
[402076709,1768511308414,-199.47,0.0001637,2]
[402076710,1768511308443,-151.0,0.0001637,2]
[402076711,1768511308472,-151.0,0.00016372,2]
[402076712,1768511308502,-546.81397017,0.00016404,2]
[402076713,1768511308532,-546.81397017,0.00016455,2]
[402076714,1768511308561,-242.94781896,0.00016456,2]
[402076715,1768511308779,-957.05218104,0.00016456,2]
[402076720,1768511311025,-1332.99427888,0.00016457,2]
[402076721,1768511311049,-7334.02144224,0.00016457,2]
[402076722,1768511317141,-151.0,0.00016431,2]
[402076723,1768511317170,-151.0,0.00016431,2]
[402076724,1768511317227,-9396.01,0.00016457,2]
[402076727,1768511331286,2797.91159094,0.00013672,2]
[402076728,1768511331308,2197.78840906,0.00013672,2]
[402076737,1768511404278,173.0,0.00027526,120]
[402076738,1768511405560,173.0,0.00028902,120]
[402076739,1768511416136,-283.0,0.00015914,2]
[402076740,1768511416167,-250.0,0.00015914,2]
[402076741,1768511416211,-500.0,0.00015914,2]
[402076742,1768511416242,-159.25570802,0.00016334,2]
[402076743,1768511416273,-2610.07152747,0.00016334,2]
[402076744,1768511416428,-2395.35552902,0.00016348,2]
[402076745,1768511416473,-915.89095698,0.00016348,2]
[402076746,1768511416506,-151.0,0.00016426,2]
[402076747,1768511416537,-151.0,0.00016426,2]
[402076748,1768511416570,-1788.28,0.00016445,2]
[402076749,1768511416602,-1788.28,0.00016445,2]
[402076750,1768511416676,-1200.0,0.00016454,2]
[402076751,1768511416708,-300.0,0.00016454,2]
[402076752,1768511416740,-300.0,0.00016454,2]
[402076753,1768511429955,151.0,0.00016438,2]
[402076754,1768511430388,151.0,0.00016438,2]
[402076767,1768511432328,-9375.11733737,0.00016455,2]
[402076768,1768511432339,-2001.39991148,0.00016455,2]
[402076769,1768511432350,-12811.44559282,0.00016455,2]
[402076770,1768511432368,-609.8984744,0.00016455,2]
[402076771,1768511432378,-1570.57116541,0.00016455,2]
[402076772,1768511432410,-264216.16577537,0.00016455,2]
[402076773,1768511432421,-40520.48888958,0.00016455,2]
[402076774,1768511432432,-21379.2427185,0.00016455,2]
[402076775,1768511432443,-31628.21111738,0.00016455,2]
[402076776,1768511432454,-500.0,0.00016455,2]
[402076777,1768511436545,848.44,0.00016408,2]
[402076779,1768511438230,-942.2,0.00016455,2]
[402076780,1768511438286,-2553.98606414,0.00016455,2]
[402076781,1768511438298,-370.6274995,0.00016455,2]
[402076782,1768511438330,5249.57,0.00016404,2]
[402076783,1768511438352,10000.01,0.00016404,2]
[402076784,1768511438374,10000.01,0.00016404,2]
[402076785,1768511438387,-304.35,0.00016404,2]
[402076786,1768511438396,-611520.64545405,0.00016455,2]
[402076787,1768511438406,-16117.79877816,0.00016457,2]
[402076788,1768511438416,-844.88,0.00016546,3]
[402076789,1768511438425,-1000.0,0.00016554,2]
[402076790,1768511438435,-168.019,0.00016554,2]
[402076791,1768511438444,-1225.488,0.00016554,2]
[402076793,1768511438454,-550.0,0.00016554,2]
[402076795,1768511438463,-9999.99,0.00016555,2]
[402076797,1768511438472,-9999.99,0.00016555,2]
[402076798,1768511438482,-5159.48,0.00016555,2]
[402076800,1768511438491,-513.53,0.00016555,2]
[402076802,1768511438500,-4320.66,0.00016555,2]
[402076804,1768511438509,-500.0,0.00016555,2]
[402076806,1768511438518,-427.65336521,0.00016555,2]
[402076807,1768511438528,-500.0,0.00016555,2]
[402076809,1768511438537,-500.0,0.00016555,2]
[402076810,1768511438546,-500.0,0.00016555,2]
[402076812,1768511438555,-500.0,0.00016555,2]
[402076813,1768511438565,-500.0,0.00016555,2]
[402076814,1768511438574,-500.0,0.00016555,2]
[402076815,1768511438583,-500.0,0.00016555,2]
[402076816,1768511438593,-500.0,0.00016555,2]
[402076817,1768511438602,-500.0,0.00016555,2]
[402076818,1768511438612,-500.0,0.00016555,2]
[402076819,1768511438622,-500.0,0.00016555,2]
[402076820,1768511438632,-500.0,0.00016555,2]
[402076821,1768511438642,-500.0,0.00016555,2]
[402076822,1768511438652,-500.0,0.00016555,2]
[402076823,1768511438661,-500.0,0.00016555,2]
[402076824,1768511438671,-500.0,0.00016555,2]
[402076825,1768511438680,-500.0,0.00016555,2]
[402076826,1768511438689,-500.0,0.00016555,2]
[402076827,1768511438699,-500.0,0.00016555,2]
[402076828,1768511438710,-341.15949194,0.00016555,2]
[402076829,1768511438719,-500.0,0.00016555,2]
[402076830,1768511438729,-500.0,0.00016555,2]
[402076831,1768511438738,-500.0,0.00016555,2]
[402076832,1768511438748,-410.82759852,0.00016555,2]
[402076833,1768511438758,-156.75586223,0.00016555,2]
[402076834,1768511438768,-500.0,0.00016555,2]
[402076835,1768511438778,-500.0,0.00016555,2]
[402076836,1768511438787,-500.0,0.00016555,2]
[402076837,1768511438797,-500.0,0.00016555,2]
[402076838,1768511438806,-500.0,0.00016555,2]
[402076839,1768511438815,-500.0,0.00016555,2]
[402076840,1768511438825,-500.0,0.00016555,2]
[402076841,1768511438835,-500.0,0.00016555,2]
[402076842,1768511438845,-500.0,0.00016555,2]
[402076843,1768511438855,-276.43744188,0.00016555,2]
[402076844,1768511438865,-500.0,0.00016555,2]
[402076845,1768511438874,-500.0,0.00016555,2]
[402076846,1768511438884,-500.0,0.00016555,2]
[402076847,1768511438894,-500.0,0.00016555,2]
[402076848,1768511438905,-500.0,0.00016555,2]
[402076849,1768511438914,-500.0,0.00016555,2]
[402076850,1768511438924,-500.0,0.00016555,2]
[402076851,1768511438935,-500.0,0.00016555,2]
[402076852,1768511438945,-500.0,0.00016555,2]
[402076853,1768511438954,-500.0,0.00016555,2]
[402076854,1768511438964,-500.0,0.00016555,2]
[402076855,1768511438974,-500.0,0.00016555,2]
[402076856,1768511438983,-500.0,0.00016555,2]
[402076857,1768511438993,-500.0,0.00016555,2]
[402076858,1768511439002,-500.0,0.00016555,2]
[402076859,1768511439012,-500.0,0.00016555,2]
[402076860,1768511439022,-500.0,0.00016555,2]
[402076861,1768511439031,-500.0,0.00016555,2]
[402076862,1768511439040,-500.0,0.00016555,2]
[402076863,1768511439053,-621.22293856,0.00016555,2]
[402076864,1768511439062,-500.0,0.00016555,2]
[402076865,1768511439071,-500.0,0.00016555,2]
[402076866,1768511439080,-500.0,0.00016555,2]
[402076867,1768511439091,-500.0,0.00016555,2]
[402076868,1768511439100,-500.0,0.00016555,2]
[402076869,1768511439110,-500.0,0.00016555,2]
[402076870,1768511439119,-500.0,0.00016555,2]
[402076871,1768511439129,-500.0,0.00016555,2]
[402076872,1768511439139,-500.0,0.00016555,2]
[402076873,1768511439149,-500.0,0.00016555,2]
[402076874,1768511439158,-500.0,0.00016555,2]
[402076875,1768511439168,-500.0,0.00016555,2]
[402076876,1768511439177,-500.0,0.00016555,2]
[402076877,1768511439187,-500.0,0.00016555,2]
[402076878,1768511439197,-500.0,0.00016555,2]
[402076879,1768511439207,-500.0,0.00016555,2]
[402076880,1768511439216,-500.0,0.00016555,2]
[402076881,1768511439226,-500.0,0.00016555,2]
[402076882,1768511439236,-500.0,0.00016555,2]
[402076883,1768511439246,-500.0,0.00016555,2]
[402076884,1768511439255,-500.0,0.00016555,2]
[402076885,1768511439264,-500.0,0.00016555,2]
[402076886,1768511439273,-500.0,0.00016555,2]
[402076887,1768511439283,-500.0,0.00016555,2]
[402076888,1768511439292,-500.0,0.00016555,2]
[402076889,1768511439301,-500.0,0.00016555,2]
[402076890,1768511439311,-500.0,0.00016555,2]
[402076891,1768511439320,-500.0,0.00016555,2]
[402076892,1768511439330,-200.0,0.00016555,2]
[402076893,1768511439340,-502.63945062,0.00016555,2]
[402076894,1768511439349,-500.0,0.00016555,2]
[402076895,1768511439358,-392.69024378,0.00016555,2]
[402076896,1768511439367,-235.23163761,0.00016555,2]
[402076897,1768511439377,-500.0,0.00016555,2]
[402076898,1768511439386,-500.0,0.00016555,2]
[402076899,1768511439395,-232.5070812,0.00016555,2]
[402076900,1768511439404,-310.05,0.00016555,2]